bitfinex-derivatives/quotes_ETHF0:USTF0_20250712
["timestamp","ask_amount","ask_price","bid_price","bid_amount"]
[1752318553801,1.73160986,2973.9,2973.8,3.1101]
[1752318554402,2.40388986,2973.9,2973.8,3.1101]
[1752318554800,1.73160986,2973.9,2973.8,3.1101]
[1752318554995,0.897,2973.9,2973.8,3.1101]
[1752318557805,0.9679,2974.1,2974.0,3.11166]
[1752318558103,23.9019,2974.1,2974.0,3.11166]
[1752318558405,0.9679,2974.1,2974.0,3.11166]
[1752318560501,1.80810986,2974.4,2974.3,2.20109]
[1752318560701,24.74210986,2974.4,2974.3,3.11159]
[1752318560897,25.41427986,2974.4,2974.3,1.5289]
[1752318561204,25.41777986,2974.4,2974.3,0.9215]
[1752318561706,0.0056,2974.1,2974.0,3.11164]
[1752318561905,2.48033986,2974.1,2974.0,2.4394]
[1752318562105,2.48383986,2974.1,2974.0,1.5289]
[1752318562300,2.48383986,2974.1,2974.0,2.20116]
[1752318563702,2.48033986,2974.1,2974.0,2.20116]
[1752318564005,0.9679,2974.1,2974.0,3.11166]
[1752318565203,1.64013,2974.1,2974.0,3.11166]
[1752318566101,0.83460986,2974.4,2974.2,0.67219]
[1752318566306,1.51238986,2974.4,2974.3,3.11159]
[1752318566507,24.44538986,2974.4,2974.3,3.11159]
[1752318566805,25.41328986,2974.4,2974.3,3.11159]
[1752318573111,2.48028986,2974.4,2974.3,3.11159]
[1752318573303,25.41128986,2974.4,2974.3,3.11159]
[1752318574308,24.73910986,2974.4,2974.3,3.11159]
[1752318574504,25.41127986,2974.4,2974.3,3.11159]
[1752318577813,26.34717784,2974.4,2974.3,3.11159]
[1752318578411,25.67500784,2974.4,2974.3,3.11159]
[1752318578812,26.34717784,2974.4,2974.3,1.5289]
[1752318579013,26.35067784,2974.4,2974.3,1.5289]
[1752318579314,26.34717784,2974.4,2974.3,1.5289]
[1752318580013,26.34717784,2974.4,2974.3,2.20109]
[1752318580206,26.34717784,2974.4,2974.3,3.11159]
[1752318581417,3.41617784,2974.4,2974.3,3.11159]
[1752318586310,3.41617784,2974.4,2974.3,2.20109]
[1752318587712,3.41617784,2974.4,2974.3,3.14599]
[1752318588817,3.41617784,2974.4,2974.3,2.20109]
[1752318589217,3.41617784,2974.4,2974.3,3.14599]
[1752318590520,3.41617784,2974.4,2974.3,2.4738]
[1752318590821,3.41800129,2974.4,2974.3,2.4738]
[1752318591016,3.41800129,2974.4,2974.3,3.14599]
[1752318591321,3.41800129,2974.4,2974.3,2.4738]
[1752318591820,3.41800129,2974.4,2974.3,1.5289]
[1752318592022,3.41800129,2974.4,2974.3,0.9215]
[1752318593617,3.41800129,2974.4,2974.3,2.23639]
[1752318594126,3.41800129,2974.4,2974.3,3.18129]
[1752318599825,2.74583129,2974.4,2974.3,3.18129]
[1752318600126,3.41800129,2974.4,2974.3,3.18129]
[1752318600425,2.74583129,2974.4,2974.3,3.18129]
[1752318601219,2.74023129,2974.4,2974.3,3.18129]
[1752318603025,0.93772143,2974.4,2974.3,3.18129]
[1752318605114,1.77233129,2974.4,2974.3,3.18129]
[1752318605320,2.69723129,2974.4,2974.3,3.18129]
[1752318605825,3.36940129,2974.4,2974.3,3.18129]
[1752318606124,2.69723129,2974.4,2974.3,3.18129]
[1752318607626,3.36940129,2974.4,2974.3,3.18129]
[1752318608524,3.37420129,2974.4,2974.3,3.18129]
[1752318608718,2.69723129,2974.4,2974.3,3.18129]
[1752318610823,3.36940129,2974.4,2974.3,3.18129]
[1752318611022,2.69723129,2974.4,2974.3,3.18129]
[1752318616733,3.36940129,2974.4,2974.3,3.18129]
[1752318616924,3.37060129,2974.4,2974.3,3.18129]
[1752318618031,2.69843129,2974.4,2974.3,3.18129]
[1752318619132,3.37060129,2974.4,2974.3,3.18129]
[1752318619433,2.69843129,2974.4,2974.3,3.18129]
[1752318619625,3.37060129,2974.4,2974.3,3.18129]
[1752318619928,2.69843129,2974.4,2974.3,3.18129]
[1752318620329,2.69723129,2974.4,2974.3,3.18129]
[1752318623425,0.93772143,2974.4,2974.3,3.18129]
[1752318623731,2.80855989,2974.9,2974.8,3.16018]
[1752318623932,3.64316975,2974.9,2974.8,3.16018]
[1752318624332,4.45116975,2974.9,2974.8,3.16018]
[1752318624534,3.24580986,2974.9,2974.8,3.16018]
[1752318624833,5.12321975,2974.9,2974.8,3.16018]
[1752318625028,5.12321975,2974.9,2974.8,2.22538]
[1752318625229,5.12321975,2974.9,2974.8,1.5533]
[1752318625428,3.91785986,2974.9,2974.8,1.5533]
[1752318625634,3.91785986,2974.9,2974.8,0.8985]
[1752318625834,3.91785986,2974.9,2974.8,2.22538]
[1752318626035,3.91785986,2974.9,2974.8,3.16018]
[1752318628434,2.43780986,2974.9,2974.8,3.16018]
[1752318628632,3.10986986,2974.9,2974.8,3.16018]
[1752318631240,2.43780986,2974.9,2974.8,3.16018]
[1752318631843,3.10986986,2974.9,2974.8,3.16018]
[1752318632639,2.43780986,2974.9,2974.8,3.16018]
[1752318634146,3.10986986,2974.9,2974.8,3.16018]
[1752318634347,2.43780986,2974.9,2974.8,3.16018]
[1752318634747,3.10986986,2974.9,2974.8,3.16018]
[1752318635744,4.03997326,2974.9,2974.8,3.16018]
[1752318635944,3.36791326,2974.9,2974.8,3.16018]
[1752318636250,4.03997326,2974.9,2974.8,3.16018]
[1752318636750,3.36791326,2974.9,2974.8,3.16018]
[1752318637051,4.03997326,2974.9,2974.8,3.16018]
[1752318637251,3.36791326,2974.9,2974.8,3.16018]
[1752318637851,3.2078,2975.0,2974.9,1.32686]
[1752318638145,4.13426601,2975.0,2974.9,3.16016]
[1752318638449,3.87977,2975.3,2975.2,0.67199]
[1752318638651,5.11027704,2975.3,2975.2,3.16009]
[1752318639151,1.90247704,2975.3,2975.2,3.16009]
[1752318639952,2.57443704,2975.3,2975.2,3.16009]
[1752318640348,0.92637704,2975.3,2975.2,3.16009]
[1752318640754,4.811,2975.6,2975.5,1.32672]
[1752318640955,6.57171104,2975.6,2975.5,3.16002]
[1752318641155,0.92610118,2975.6,2975.5,3.16002]
[1752318641761,4.66950986,2976.0,2975.9,2.22513]
[1752318641960,5.59524806,2976.0,2975.9,3.15993]
[1752318642354,6.57134806,2976.0,2975.9,3.15993]
[1752318643160,0.9257382,2976.0,2975.9,3.15993]
[1752318643360,1.9018382,2976.0,2975.9,3.15993]
[1752318643556,0.9761,2976.0,2975.9,3.15993]
[1752318643749,1.81070986,2976.0,2975.9,3.15993]
[1752318643955,2.48251986,2976.0,2975.9,3.15993]
[1752318644457,3.10961986,2976.0,2975.9,3.15993]
[1752318644860,3.10961986,2976.0,2975.9,2.4881]
[1752318645861,3.10961986,2976.0,2975.9,3.15993]
[1752318646162,3.10961986,2976.0,2975.9,2.4881]
[1752318646358,4.03329878,2976.0,2975.9,2.4881]
[1752318646560,5.67540864,2976.0,2975.9,0.8985]
[1752318647161,4.84079878,2976.0,2975.9,0.8985]
[1752318648364,4.84079878,2976.0,2975.9,1.5007]
[1752318649856,4.84079878,2976.0,2975.9,2.4629]
[1752318650063,4.84079878,2976.0,2975.9,1.5007]
[1752318651062,4.84079878,2976.0,2975.9,2.4629]
[1752318651963,4.84079878,2976.0,2975.9,1.5007]
[1752318652766,1.5552,2975.7,2975.6,3.16359]
[1752318653168,3.03457,2975.7,2975.6,2.4917]
[1752318654166,1.30914,2975.4,2975.3,1.5644]
[1752318654363,3.86924986,2975.4,2975.3,2.4917]
[1752318654667,3.86924986,2975.4,2975.3,0.9273]
[1752318654962,3.03471,2975.1,2975.0,2.4917]
[1752318655164,3.03471,2975.1,2974.6,0.9273]
[1752318655165,2.1168,2974.7,2974.6,0.9273]
[1752318655470,3.21467,2974.4,2974.3,1.5644]
[1752318655665,4.04927986,2974.4,2974.3,1.5644]
[1752318655863,4.04927986,2974.4,2974.3,2.23659]
[1752318656063,4.04927986,2974.4,2974.3,1.5644]
[1752318656267,4.04927986,2974.4,2974.3,2.23659]
[1752318656964,3.37710986,2974.4,2974.3,2.23659]
[1752318657360,3.37710986,2974.4,2974.3,3.16389]
[1752318657565,4.04927986,2974.4,2974.3,3.16389]
[1752318658773,3.37710986,2974.4,2974.3,3.16389]
[1752318658973,24.4582,2974.6,2974.5,3.16385]
[1752318659174,1.5552,2974.6,2974.5,3.16385]
[1752318659473,2.5425,2974.6,2974.5,3.16385]
[1752318660069,4.04922986,2974.6,2974.5,3.16385]
[1752318660879,4.04922986,2974.6,2974.5,1.5295]
[1752318661174,2.5425,2974.6,2974.5,3.16385]
[1752318661374,3.37710986,2974.6,2974.5,3.16385]
[1752318661565,4.04922986,2974.6,2974.5,3.16385]
[1752318662374,3.37710986,2974.6,2974.5,3.16385]
[1752318663072,4.04922986,2974.6,2974.5,3.16385]
[1752318665572,4.04922986,2974.6,2974.5,2.4917]
[1752318665876,4.04922986,2974.6,2974.5,1.5295]
[1752318666074,4.04922986,2974.6,2974.5,2.4917]
[1752318666377,4.04922986,2974.6,2974.5,3.16385]
[1752318666571,3.2078,2974.7,2974.5,2.4917]
[1752318666777,2.2273,2974.7,2974.6,1.27432]
[1752318666979,26.1206,2974.7,2974.6,3.16382]
[1752318667283,26.1206,2974.7,2974.6,2.4917]
[1752318667468,29.3284,2974.7,2974.6,2.4917]
[1752318668180,29.3284,2974.7,2974.6,3.16382]
[1752318669575,28.6563,2974.7,2974.6,3.16382]
[1752318669976,29.3284,2974.7,2974.6,3.16382]
[1752318677486,29.3284,2974.7,2974.6,2.4917]
[1752318677687,3.27135,2974.6,2974.5,0.67212]
[1752318677888,3.43380986,2974.6,2974.5,3.23222]
[1752318678388,4.10592986,2974.6,2974.5,3.23222]
[1752318683496,5.02991037,2974.6,2974.5,3.23222]
[1752318688597,5.02991037,2974.6,2974.5,2.5601]
[1752318688796,3.27137,2974.4,2974.3,0.6189]
[1752318689099,31.14176037,2974.4,2974.3,0.6189]
[1752318689500,31.14176037,2974.4,2974.3,2.5601]
[1752318692300,31.14176037,2974.4,2974.3,3.23229]
[1752318692502,31.14176037,2974.4,2974.3,2.5601]
[1752318693301,3.27139,2974.3,2974.2,0.6189]
[1752318693605,1.608,2973.5,2973.4,3.23249]
[1752318693794,1.68058,2974.2,2973.3,3.2078]
[1752318693795,0.83460986,2973.6,2973.5,3.23247]
[1752318694000,5.807,2973.8,2973.7,3.23243]
[1752318694301,28.713,2973.8,2973.7,3.23243]
[1752318694705,29.54760986,2973.8,2973.7,3.23243]
[1752318694905,30.4719104,2973.8,2973.7,3.23243]
[1752318695106,29.54760986,2973.8,2973.7,3.23243]
[1752318695906,30.21990986,2973.8,2973.7,2.5601]
[1752318701497,30.21990986,2973.8,2973.7,3.23243]
[1752318702008,30.21990986,2973.8,2973.7,2.5601]
[1752318704008,30.21990986,2973.8,2973.7,3.23243]
[1752318704207,30.21990986,2973.8,2973.7,2.5601]
[1752318704909,3.19335,2973.6,2973.5,3.25207]
[1752318705106,26.93695986,2973.6,2973.5,3.25207]
[1752318705304,26.26460986,2973.6,2973.5,3.25207]
[1752318705900,26.93695986,2973.6,2973.5,3.25207]
[1752318706107,26.26460986,2973.6,2973.5,3.25207]
[1752318707011,26.93695986,2973.6,2973.5,3.25207]
[1752318707212,26.26460986,2973.6,2973.5,3.25207]
[1752318708011,26.93695986,2973.6,2973.5,3.25207]
[1752318708412,26.26460986,2973.6,2973.5,3.25207]
[1752318708710,26.93695986,2973.6,2973.5,3.25207]
[1752318709315,26.93695986,2973.6,2973.5,2.5797]
[1752318709510,26.93695986,2973.6,2973.5,3.25207]
[1752318710014,26.93695986,2973.6,2973.5,2.5797]
[1752318710313,26.93695986,2973.6,2973.5,3.25207]
[1752318710611,26.93695986,2973.6,2973.5,2.5797]
[1752318710814,26.93695986,2973.6,2973.5,3.25207]
[1752318711313,26.93695986,2973.6,2973.5,2.5797]
[1752318711815,26.93695986,2973.6,2973.5,3.25207]
[1752318713410,3.16897,2973.2,2973.1,0.639]
[1752318713606,2.4965,2973.2,2973.1,3.21246]
[1752318713809,25.4055,2973.2,2973.1,3.21246]
[1752318714506,26.07794,2973.2,2973.1,3.21246]
[1752318715613,26.07794,2973.2,2973.1,2.54]
[1752318716011,2.4965,2973.2,2973.1,3.21246]
[1752318716212,25.4055,2973.2,2973.1,3.21246]
[1752318716515,26.07794,2973.2,2973.1,3.21246]
[1752318717015,25.4055,2973.2,2973.1,3.21246]
[1752318717610,26.07794,2973.2,2973.1,3.21246]
[1752318718012,25.4055,2973.2,2973.1,3.21246]
[1752318718215,26.07794,2973.2,2973.1,3.21246]
[1752318719116,25.4055,2973.2,2973.1,3.21246]
[1752318719517,26.07794,2973.2,2973.1,3.21246]
[1752318721119,25.4055,2973.2,2973.1,3.21246]
[1752318721721,26.07794,2973.2,2973.1,3.21246]
[1752318722322,25.4055,2973.2,2973.1,3.21246]
[1752318722522,26.07794,2973.2,2973.1,3.21246]
[1752318722822,26.07794,2973.2,2973.1,2.54]
[1752318724317,26.99765403,2973.2,2973.1,2.54]
[1752318724519,26.99765403,2973.2,2973.1,3.21246]
[1752318725423,26.07794,2973.2,2973.1,3.21246]
[1752318727020,26.07794,2973.2,2973.1,2.54]
[1752318728120,26.99785713,2973.2,2973.1,2.54]
[1752318728421,26.07794,2973.2,2973.1,2.54]
[1752318728621,26.99787059,2973.2,2973.1,2.54]
[1752318731029,26.99787059,2973.2,2973.1,3.21246]
[1752318731327,26.99787059,2973.2,2973.1,2.54]
[1752318732427,3.16898,2973.0,2972.9,3.2125]
[1752318732628,26.91458986,2973.0,2972.9,3.2125]
[1752318733130,26.24210986,2973.0,2972.9,3.2125]
[1752318733326,25.32860986,2973.0,2972.9,3.2125]
[1752318734330,26.00108986,2973.0,2972.9,3.2125]
[1752318734530,26.96038986,2973.0,2972.9,3.2125]
[1752318736532,26.28790986,2973.0,2972.9,3.2125]
[1752318736732,26.96038986,2973.0,2972.9,3.2125]
[1752318737833,26.28790986,2973.0,2972.9,3.2125]
[1752318738333,26.96038986,2973.0,2972.9,3.2125]
[1752318738830,26.96038986,2973.0,2972.9,2.54]
[1752318739231,31.08958928,2973.0,2972.9,2.54]
[1752318741735,26.32829942,2973.0,2972.9,3.21251]
[1752318742835,27.00077942,2973.0,2972.9,3.21251]
[1752318744635,26.32829942,2973.0,2972.9,3.21251]
[1752318745030,27.83538928,2973.0,2972.9,3.21251]
[1752318746035,27.83538928,2973.0,2972.9,2.54]
[1752318747335,27.83538928,2973.0,2972.9,3.21251]
[1752318747635,27.83538928,2973.0,2972.9,2.54]
[1752318747834,31.04318928,2973.0,2972.9,2.54]
[1752318748433,27.83538928,2973.0,2972.9,2.54]
[1752318748635,27.83538928,2973.0,2972.9,3.21251]
[1752318753437,2.45799942,2973.0,2972.9,3.21251]
[1752318753646,24.44769942,2973.0,2972.9,3.21251]
[1752318753938,25.36799942,2973.0,2972.9,3.21251]
[1752318754144,26.32729942,2973.0,2972.9,3.21251]
[1752318754842,26.99977942,2973.0,2972.9,3.21251]
[1752318755039,26.32729942,2973.0,2972.9,3.21251]
[1752318755240,26.99977942,2973.0,2972.9,3.21251]
[1752318755839,26.32729942,2973.0,2972.9,3.21251]
[1752318756035,2.45799942,2973.0,2972.9,3.21251]
[1752318756241,23.83039942,2973.0,2972.9,3.21251]
[1752318756544,24.50287942,2973.0,2972.9,3.21251]
[1752318756737,25.42317942,2973.0,2972.9,3.21251]
[1752318757041,26.08137942,2973.0,2972.9,3.21251]
[1752318757840,25.40889942,2973.0,2972.9,3.21251]
[1752318758141,1.33068,2973.1,2973.0,1.28918]
[1752318758341,27.04293335,2973.1,2973.0,3.26278]
[1752318758945,27.87754321,2973.1,2973.0,3.26278]
[1752318759245,27.20506321,2973.1,2973.0,3.26278]
[1752318759744,27.87752321,2973.1,2973.0,3.26278]
[1752318759942,27.20506321,2973.1,2973.0,3.26278]
[1752318760539,1.3307,2973.0,2972.9,3.26279]
[1752318760739,4.96856321,2973.0,2972.9,3.26279]
[1752318762145,4.29606321,2973.0,2972.9,3.26279]
[1752318762444,2.50215335,2973.0,2972.9,3.26279]
[1752318762841,27.20306321,2973.0,2972.9,3.26279]
[1752318763843,4.96854321,2973.0,2972.9,3.26279]
[1752318764043,27.87554321,2973.0,2972.9,3.26279]
[1752318767550,1.5664,2972.8,2972.7,2.5513]
[1752318767849,26.32565335,2972.8,2972.7,2.5513]
[1752318768049,26.07453,2972.8,2972.7,3.22385]
[1752318768550,26.99842233,2972.8,2972.7,3.22385]
[1752318768851,27.83303217,2972.8,2972.7,2.5513]
[1752318769152,27.16050217,2972.8,2972.7,0.9515]
[1752318769550,27.83303217,2972.8,2972.7,0.9515]
[1752318770547,27.83303217,2972.8,2972.7,2.5513]
[1752318772147,27.83303217,2972.8,2972.7,3.22385]
[1752318772945,26.32589231,2972.8,2972.7,3.22385]
[1752318773148,25.39629231,2972.8,2972.7,3.22385]
[1752318773748,26.32589231,2972.8,2972.7,3.22385]
[1752318774849,26.99842231,2972.8,2972.7,3.22385]
[1752318775652,26.99842231,2972.8,2972.3,1.68157]
[1752318775653,27.83303217,2972.8,2972.2,3.2078]
[1752318775852,2.496,2972.0,2971.9,3.22403]
[1752318776161,1.5664,2972.0,2971.9,3.22403]
[1752318776354,47.7028,2972.2,2972.1,3.22399]
[1752318777557,48.37547,2972.2,2972.1,3.22399]
[1752318777754,47.7028,2972.2,2972.1,3.22399]
[1752318778652,3.2078,2972.7,2972.5,2.5513]
[1752318778850,23.5062,2972.7,2972.6,0.6485]
[1752318779153,2.23902,2972.4,2972.3,1.32113]
[1752318779456,26.90722986,2972.4,2972.3,3.22393]
[1752318781657,26.23460986,2972.4,2972.3,3.22393]
[1752318782157,26.90722986,2972.4,2972.3,3.22393]
[1752318782358,26.23460986,2972.4,2972.3,3.22393]
[1752318782559,26.90722986,2972.4,2972.3,3.22393]
[1752318783661,26.23460986,2972.4,2972.3,3.22393]
[1752318786156,0.6022,2972.2,2972.1,0.6485]
[1752318786360,26.23560986,2972.2,2972.1,2.27269]
[1752318786861,26.23560986,2972.2,2972.1,3.22399]
[1752318787062,26.90827986,2972.2,2972.1,3.22399]
[1752318787861,26.23560986,2972.2,2972.1,3.22399]
[1752318788562,25.401,2972.2,2972.1,3.22399]
[1752318789060,22.905,2972.2,2972.1,3.22399]
[1752318790259,25.14406,2972.2,2972.1,3.22399]
[1752318790460,26.07366,2972.2,2972.1,3.22399]
[1752318790661,26.90826986,2972.2,2972.1,3.22399]
[1752318791963,26.90826986,2972.2,2972.1,2.5513]
[1752318792160,2.20453,2972.0,2971.9,2.5513]
[1752318792464,26.90833986,2972.0,2971.9,2.5513]
[1752318793862,26.90833986,2972.0,2971.9,3.22402]
[1752318795070,26.07373,2972.0,2971.9,3.22402]
[1752318795365,26.90833986,2972.0,2971.9,3.22402]
[1752318796066,26.07373,2972.0,2971.9,3.22402]
[1752318796265,26.90833986,2972.0,2971.9,3.22402]
[1752318802667,24.4704,2972.0,2971.9,3.22402]
[1752318803068,23.5062,2972.0,2971.9,3.22402]
[1752318804174,0.9455,2972.2,2972.0,1.4939]
[1752318804374,2.4957,2972.2,2972.1,3.12239]
[1752318804674,25.3997,2972.2,2972.1,3.12239]
[1752318805876,26.07236,2972.2,2972.1,3.12239]
[1752318806474,3.16836,2972.2,2972.1,3.12239]
[1752318806674,26.07236,2972.2,2972.1,3.12239]
[1752318806872,1.5502,2971.6,2971.5,4.47782]
[1752318807075,3.33030986,2971.6,2971.5,4.47782]
[1752318807476,3.33030986,2971.6,2971.5,6.33032]
[1752318807776,4.00310986,2971.6,2971.5,6.33032]
[1752318808677,0.6012,2971.6,2971.5,6.33032]
[1752318808872,25.47027,2971.8,2971.7,1.26998]
[1752318809067,24.52477,2971.8,2971.7,1.4939]
[1752318809278,24.52477,2971.8,2971.7,2.4497]
[1752318809776,22.903,2971.8,2971.7,3.12248]
[1752318810874,23.57576,2971.8,2971.7,3.12248]
[1752318811881,23.57576,2971.8,2971.7,2.4497]
[1752318812180,25.12596,2971.8,2971.7,2.4497]
[1752318812381,26.07146,2971.8,2971.7,2.4497]
[1752318812881,26.07146,2971.8,2971.7,3.12248]
[1752318813985,1.5502,2972.0,2971.9,3.12243]
[1752318814283,24.4542,2972.0,2971.9,3.12243]
[1752318814686,3.2078,2972.1,2972.0,1.26991]
[1752318814880,2.22284,2972.3,2972.2,3.12236]
[1752318815080,26.99328617,2972.3,2972.2,3.12236]
[1752318815279,26.07134,2972.3,2972.2,3.12236]
[1752318816290,25.3987,2972.3,2972.2,3.12236]
[1752318816889,26.07134,2972.3,2972.2,3.12236]
[1752318817285,26.32108138,2972.3,2972.2,3.12236]
[1752318820793,1.52358138,2972.3,2972.2,3.12236]
[1752318820990,0.6012,2972.3,2972.2,3.12236]
[1752318822096,1.52429819,2972.3,2972.2,3.12236]
[1752318823197,0.6012,2972.3,2972.2,3.12236]
[1752318824398,1.5502,2972.3,2972.2,3.12236]
[1752318825395,3.2078,2972.4,2972.3,0.67264]
[1752318825598,3.2078,2972.7,2972.6,1.27797]
[1752318825898,27.99270262,2972.7,2972.6,3.22257]
[1752318826199,3.2078,2972.7,2972.6,3.22257]
[1752318829403,4.7863,2972.7,2972.6,3.22257]
[1752318829597,5.6997,2972.7,2972.6,3.22257]
[1752318830396,2.4919,2972.7,2972.6,3.22257]
[1752318831695,1.5785,2972.7,2972.6,3.22257]
[1752318835804,2.4919,2972.7,2972.6,3.22257]
[1752318837305,1.5785,2972.7,2972.6,3.22257]
[1752318840003,0.6167,2972.7,2972.6,3.22257]
[1752318840198,0.83460986,2972.8,2972.7,1.27795]
[1752318840394,1.79640986,2972.8,2972.7,3.22255]
[1752318840604,22.898,2972.9,2972.8,3.22253]
[1752318841499,2.4919,2973.1,2973.0,3.22248]
[1752318841702,0.6167,2973.1,2973.0,3.22248]
[1752318842198,2.4919,2973.1,2973.0,3.22248]
[1752318847511,1.5785,2973.1,2973.0,3.22248]
[1752318847709,2.4919,2973.2,2973.1,3.22246]
[1752318848105,3.32650986,2973.2,2973.1,3.22246]
[1752318851105,3.99894986,2973.2,2973.1,2.24876]
[1752318851410,3.99894986,2973.2,2973.1,3.22246]
[1752318851810,3.32650986,2973.2,2973.1,3.22246]
[1752318852513,3.99894986,2973.2,2973.1,3.22246]
[1752318852715,3.32650986,2973.2,2973.1,3.22246]
[1752318852908,3.99894986,2973.2,2973.1,3.22246]
[1752318854014,3.32650986,2973.2,2973.1,3.22246]
[1752318854612,3.99894986,2973.2,2973.1,3.22246]
[1752318854812,3.32650986,2973.2,2973.1,3.22246]
[1752318859520,3.32650986,2973.2,2973.1,3.28206]
[1752318867127,4.25054458,2973.2,2973.1,3.28206]
[1752318870128,27.13254458,2973.2,2973.1,3.28206]
[1752318870719,27.80498458,2973.2,2973.1,3.28206]
[1752318870917,27.13254458,2973.2,2973.1,3.28206]
[1752318876134,27.80498458,2973.2,2973.1,3.28206]
[1752318877335,27.13254458,2973.2,2973.1,3.28206]
[1752318877535,27.80498458,2973.2,2973.1,3.28206]
[1752318878137,27.13254458,2973.2,2973.1,3.28206]
[1752318878639,27.80498458,2973.2,2973.1,3.28206]
[1752318879537,26.29793472,2973.2,2973.1,3.28206]
[1752318879737,27.80498458,2973.2,2973.1,3.28206]
[1752318883644,26.97037472,2973.2,2973.1,3.28206]
[1752318887447,4.08837472,2973.2,2973.1,3.28206]
[1752318887647,26.29293472,2973.2,2973.1,3.28206]
[1752318888847,26.96537472,2973.2,2973.1,3.28206]
[1752318890948,27.59261647,2973.2,2973.1,3.28206]
[1752318905967,26.92017647,2973.2,2973.1,3.28206]
[1752318906564,27.59261647,2973.2,2973.1,3.28206]
[1752318906967,26.91517647,2973.2,2973.1,3.28206]
[1752318907166,4.04317647,2973.2,2973.1,3.28206]
[1752318907367,26.91417647,2973.2,2973.1,3.28206]
[1752318908069,27.58661647,2973.2,2973.1,3.28206]
[1752318908669,26.91417647,2973.2,2973.1,3.28206]
[1752318910264,2.50333472,2973.2,2973.1,3.28206]
[1752318910465,24.41073472,2973.2,2973.1,3.28206]
[1752318910669,26.31753472,2973.2,2973.1,3.28206]
[1752318913469,25.3935,2973.2,2973.1,3.28206]
[1752318913870,26.31736287,2973.2,2973.1,3.28206]
[1752318914574,25.3935,2973.2,2973.1,3.28206]
[1752318915777,26.02074175,2973.2,2973.1,3.28206]
[1752318917580,3.15074175,2973.2,2973.1,3.28206]
[1752318917779,26.01874175,2973.2,2973.1,3.28206]
[1752318918675,24.4473,2973.2,2973.1,3.28206]
[1752318919382,25.07454175,2973.2,2973.1,3.28206]
[1752318919783,2.20654175,2973.2,2973.1,3.28206]
[1752318919983,25.07354175,2973.2,2973.1,3.28206]
[1752318920978,26.05374175,2973.2,2973.1,3.28206]
[1752318921883,2.20654175,2973.2,2973.1,3.28206]
[1752318922083,25.07354175,2973.2,2973.1,3.28206]
[1752318922281,26.05374175,2973.2,2973.1,3.28206]
[1752318922675,0.6289,2972.4,2972.3,3.8359]
[1752318922978,3.14404175,2972.4,2972.3,3.20664]
[1752318924180,3.81666175,2972.4,2972.3,3.20664]
[1752318924879,4.02640539,2972.4,2972.3,2.534]
[1752318925584,4.94908587,2972.4,2972.3,2.534]
[1752318927383,4.02640539,2972.4,2972.3,2.534]
[1752318927585,4.02640539,2972.4,2972.3,1.5887]
[1752318930179,0.67267,2972.2,2972.1,1.61797]
[1752318930381,3.18947,2972.2,2972.1,1.9059]
[1752318930585,3.18947,2972.2,2972.1,0.9606]
[1752318931483,4.02645539,2972.2,2972.1,0.9606]
[1752318937485,4.02645539,2972.2,2972.1,3.20669]
[1752318938485,4.02645539,2972.2,2972.1,2.534]
[1752318939083,0.67271,2972.0,2971.9,1.5734]
[1752318939387,3.18956,2971.8,2971.7,1.5887]
[1752318939587,26.89754539,2971.8,2971.7,1.5887]
[1752318940379,26.89754539,2971.8,2971.7,0.9606]
[1752318941688,26.89754539,2971.8,2971.7,1.63338]
[1752318941884,26.89754539,2971.8,2971.7,0.9606]
[1752318942089,26.89754539,2971.8,2971.7,1.63338]
[1752318942290,26.89754539,2971.8,2971.7,2.26148]
[1752318942786,26.89754539,2971.8,2971.7,3.20678]
[1752318944587,0.9077,2972.0,2971.9,1.8949]
[1752318944786,25.08179,2972.1,2972.0,0.6121]
[1752318944987,25.08179,2972.1,2972.0,2.507]
[1752318945288,26.00779,2972.1,2972.0,3.17971]
[1752318947095,26.00779,2972.1,2972.0,2.507]
[1752318947294,29.21559,2972.1,2972.0,3.17971]
[1752318947490,25.3351,2972.1,2972.0,3.17971]
[1752318949195,24.4091,2972.1,2972.0,3.17971]
[1752318951193,25.3351,2972.1,2972.0,3.17971]
[1752318951694,26.00779,2972.1,2972.0,3.17971]
[1752318952096,25.3351,2972.1,2972.0,3.17971]
[1752318953293,26.00779,2972.1,2972.0,3.17971]
[1752318954699,26.00779,2972.1,2972.0,2.23441]
[1752318955198,26.00779,2972.1,2972.0,1.5617]
[1752318955492,26.00779,2972.1,2972.0,2.23441]
[1752318956895,26.00779,2972.1,2972.0,0.67271]
[1752318957098,3.16453,2972.0,2971.9,0.67272]
[1752318957400,4.00151539,2972.0,2971.9,0.67272]
[1752318957599,4.00151539,2972.0,2971.9,1.62232]
[1752318958304,4.00151539,2972.0,2971.9,3.18932]
[1752318959200,4.00151539,2972.0,2971.9,2.23442]
[1752318961003,4.00151539,2972.0,2971.9,0.67272]
[1752318961201,3.1646,2971.7,2971.6,2.23447]
[1752318961406,3.1646,2971.7,2971.6,3.18937]
[1752318962401,3.1646,2971.7,2971.6,0.9496]
[1752318962608,3.1646,2971.7,2971.3,0.9496]
[1752318962609,3.16465,2971.4,2971.3,0.9496]
[1752318962812,26.95449371,2971.4,2971.3,0.9496]
[1752318963206,26.95449371,2971.4,2971.3,1.5617]
[1752318963408,26.03465,2971.4,2971.3,2.5166]
[1752318965222,28.5696,2971.4,2971.3,0.9496]
[1752318965417,29.24245,2971.4,2971.3,0.9496]
[1752318965721,1.5658,2970.8,2970.7,5.4425]
[1752318966122,4.00176539,2970.8,2970.7,2.5166]
[1752318966622,4.00176539,2970.8,2970.7,3.1896]
[1752318966825,4.00176539,2970.8,2970.7,2.5166]
[1752318967019,4.00176539,2970.8,2970.7,1.5617]
[1752318967326,3.16483,2970.6,2970.5,0.9496]
[1752318967623,26.87281539,2970.6,2970.5,2.5166]
[1752318968012,26.19978539,2970.6,2970.5,2.5166]
[1752318968213,26.87281539,2970.6,2970.5,3.18965]
[1752318969122,26.19978539,2970.6,2970.5,2.5166]